fUSD/lending_fUSD_20260703
["ID","MTS","AMOUNT","RATE_DAILY","PERIOD"]
[426949188,1783049448000,-151.0,0.00030137,7]
[426949205,1783049448000,-151.0,0.00030137,7]
[426949196,1783049448000,-151.0,0.00030137,7]
[426949191,1783049448000,-151.0,0.00030137,7]
[426949195,1783049448000,-151.0,0.00030137,7]
[426949194,1783049448000,-151.0,0.00030137,7]
[426949190,1783049448000,-300.540704,0.00030137,7]
[426949198,1783049448000,-151.0,0.00030137,7]
[426949197,1783049448000,-151.0,0.00030137,7]
[426949193,1783049448000,-151.0,0.00030137,7]
[426949199,1783049448000,-151.0,0.00030137,7]
[426949201,1783049448000,-151.0,0.00030137,7]
[426949200,1783049448000,-151.0,0.00030137,7]
[426949202,1783049448000,-151.0,0.00030137,7]
[426949203,1783049448000,-151.0,0.00030137,7]
[426949206,1783049448000,-151.0,0.00030137,7]
[426949192,1783049448000,-151.0,0.00030137,7]
[426949238,1783049448000,-177.446972,0.00030137,7]
[426949237,1783049448000,-151.0,0.00030137,7]
[426949241,1783049448000,-599.599807,0.00030137,7]
[426949272,1783049448000,-155.16689458,0.00030247,30]
[426949275,1783049448000,-176.81199003,0.00030247,30]
[426949276,1783049448000,-247.48851418,0.00030247,30]
[426949277,1783049448000,-155.69340874,0.00030247,30]
[426949278,1783049448000,-156.44993902,0.00030247,30]
[426949290,1783049448000,-522.71413769,0.00030388,2]
[426949279,1783049448000,-176.35467816,0.00030247,30]
[426949280,1783049448000,-12500.0,0.0003025,2]
[426949284,1783049448000,-1963.6807634,0.00030291,2]
[426949286,1783049448000,-1084.08320214,0.00030317,2]
[426949285,1783049448000,-256.95,0.000303,7]
[426949282,1783049448000,-212.0,0.00030264,2]
[426949283,1783049448000,-483.0,0.00030264,2]
[426949281,1783049448000,-1525.0,0.00030264,2]
[426949287,1783049448000,-1008.2,0.0003032,30]
[426949289,1783049448000,-562.84527335,0.00030375,2]
[426949288,1783049448000,-1963.6807634,0.00030351,2]
[426949291,1783049448000,-183.27782642,0.00030411,60]
[426949292,1783049448000,-288.86,0.00030441,30]
[426949300,1783049448000,-800.0,0.000305,2]
[426949293,1783049448000,-602.83142767,0.00030453,2]
[426949299,1783049448000,-800.0,0.000305,2]
[426949296,1783049448000,-1963.6807634,0.00030464,2]
[426949302,1783049448000,-800.0,0.000305,2]
[426949301,1783049448000,-800.0,0.000305,2]
[426949298,1783049448000,-1963.6807634,0.00030498,2]
[426949295,1783049448000,-1008.2,0.0003046,30]
[426949297,1783049448000,-522.71413769,0.00030497,2]
[426949240,1783049448000,-599.599807,0.00030137,7]
[426949269,1783049448000,-638.17,0.000302,7]
[426949268,1783049448000,-243.8114247,0.00030185,2]
[426949294,1783049448000,-243.8114247,0.00030459,2]
[426949274,1783049448000,-164.34387585,0.00030247,30]
[426949249,1783049448000,-599.599807,0.00030137,7]
[426949239,1783049448000,-599.599807,0.00030137,7]
[426949242,1783049448000,-599.599807,0.00030137,7]
[426949246,1783049448000,-599.599807,0.00030137,7]
[426949247,1783049448000,-599.599807,0.00030137,7]
[426949243,1783049448000,-599.599807,0.00030137,7]
[426949248,1783049448000,-599.599807,0.00030137,7]
[426949244,1783049448000,-599.599807,0.00030137,7]
[426949273,1783049448000,-154.91742709,0.00030247,30]
[426949250,1783049448000,-599.599807,0.00030137,7]
[426949251,1783049448000,-599.599807,0.00030137,7]
[426949252,1783049448000,-599.599807,0.00030137,7]
[426949254,1783049448000,-599.599807,0.00030137,7]
[426949253,1783049448000,-599.599807,0.00030137,7]
[426949245,1783049448000,-599.599807,0.00030137,7]
[426949261,1783049448000,-627.49,0.00030137,90]
[426949257,1783049448000,-599.599807,0.00030137,7]
[426949266,1783049448000,-176.0,0.0003016,2]
[426949271,1783049448000,-156.66504411,0.00030247,30]
[426949267,1783049448000,-1008.2,0.0003018,30]
[426949264,1783049448000,-158.76,0.00030137,120]
[426949265,1783049448000,-150.0,0.00030146,30]
[426949270,1783049448000,-2120.41,0.000302,7]
[426949259,1783049448000,-1094.28,0.00030137,30]
[426949263,1783049448000,-288.86,0.00030137,30]
[426949262,1783049448000,-627.49,0.00030137,90]
[426949260,1783049448000,-627.49,0.00030137,90]
[426949256,1783049448000,-599.599807,0.00030137,7]
[426949255,1783049448000,-599.599807,0.00030137,7]
[426949258,1783049448000,-599.599805,0.00030137,7]
[426949351,1783049449000,-180.66660095,0.00031138,2]
[426949345,1783049449000,-243.8114247,0.00031007,2]
[426949343,1783049449000,-297.0,0.00031,2]
[426949354,1783049449000,-602.83142763,0.00031196,2]
[426949344,1783049449000,-282.0,0.00031,2]
[426949334,1783049449000,-800.0,0.00031,2]
[426949338,1783049449000,-215.0,0.00031,2]
[426949336,1783049449000,-195.96936296,0.00031,3]
[426949335,1783049449000,-800.0,0.00031,2]
[426949332,1783049449000,-800.0,0.00031,2]
[426949339,1783049449000,-344.0,0.00031,2]
[426949342,1783049449000,-151.0,0.00031,2]
[426949348,1783049449000,-370.15,0.000311,7]
[426949358,1783049449000,-150.0,0.00031238,2]
[426949349,1783049449000,-25250.58951193,0.00031104,7]
[426949353,1783049449000,-530.88,0.00031181,2]
[426949350,1783049449000,-8416.86317064,0.00031104,7]
[426949346,1783049449000,-1476.8,0.00031035,120]
[426949352,1783049449000,-347.76,0.00031152,2]
[426949355,1783049449000,-150.0,0.00031238,2]
[426949356,1783049449000,-150.0,0.00031238,2]
[426949357,1783049449000,-150.0,0.00031238,2]
[426949361,1783049449000,-243.8114247,0.00031281,2]
[426949363,1783049449000,-288.86,0.00031355,30]
[426949360,1783049449000,-12500.0,0.0003125,2]
[426949359,1783049449000,-150.0,0.00031238,2]
[426949362,1783049449000,-152.0,0.00031339,7]
[426949340,1783049449000,-251.0,0.00031,2]
[426949347,1783049449000,-288.86,0.0003105,30]
[426949337,1783049449000,-12500.0,0.00031,2]
[426949318,1783049449000,-288.86,0.00030746,30]
[426949333,1783049449000,-800.0,0.00031,2]
[426949303,1783049449000,-12500.0,0.000305,2]
[426949304,1783049449000,-562.84527335,0.0003052,2]
[426949365,1783049449000,-151.0,0.00031382,2]
[426949310,1783049449000,-530.88,0.00030621,2]
[426949306,1783049449000,-460.0,0.00030591,30]
[426949311,1783049449000,-1963.6807634,0.00030623,2]
[426949309,1783049449000,-522.71413769,0.0003062,2]
[426949314,1783049449000,-522.71413769,0.00030643,2]
[426949308,1783049449000,-1008.2,0.000306,30]
[426949307,1783049449000,-370.15,0.000306,7]
[426949313,1783049449000,-522.71413769,0.00030638,2]
[426949315,1783049449000,-562.84527335,0.00030699,2]
[426949312,1783049449000,-486.17,0.0003063,120]
[426949330,1783049449000,-3364.715236,0.00031,2]
[426949317,1783049449000,-243.8114247,0.00030733,2]
[426949327,1783049449000,-2120.41,0.000309,7]
[426949319,1783049449000,-1963.6807634,0.00030746,2]
[426949320,1783049449000,-12500.0,0.0003075,2]
[426949322,1783049449000,-638.17,0.000308,7]
[426949328,1783049449000,-230.0,0.00030952,10]
[426949321,1783049449000,-1963.6807634,0.00030794,2]
[426949326,1783049449000,-256.95,0.000309,7]
[426949324,1783049449000,-522.71413769,0.00030831,2]
[426949325,1783049449000,-1963.6807634,0.00030894,2]
[426949323,1783049449000,-162.69,0.0003082,30]
[426949329,1783049449000,-415.28719085,0.0003099,2]
[426949331,1783049449000,-13000.0,0.00031,2]
[426949341,1783049449000,-356.0,0.00031,2]
[426949316,1783049449000,-522.71413769,0.00030711,2]
[426949364,1783049449000,-36601.77324245,0.0003136,2]
[426949305,1783049449000,-3507.70541248,0.0003056,2]
[426949366,1783049449000,-151.0,0.00031382,2]
[426949400,1783049449000,-15086.243101,0.000319,30]
[426949397,1783049449000,-1231.0,0.00031828,2]
[426949405,1783049449000,-184609.68169914,0.00032,2]
[426949403,1783049449000,-12527.5175,0.00032,2]
[426949404,1783049449000,-25250.58951193,0.00032,7]
[426949399,1783049449000,-243.8114248,0.00031829,2]
[426949401,1783049449000,-602.83142763,0.00031939,2]
[426949408,1783049449000,-11124.77547454,0.00032,2]
[426949410,1783049449000,-800.0,0.00032,5]
[426949417,1783049449000,-344.0,0.00032,2]
[426949411,1783049449000,-800.0,0.00032,5]
[426949421,1783049449000,-297.0,0.00032,2]
[426949413,1783049449000,-800.0,0.00032,5]
[426949409,1783049449000,-467.0,0.00032,5]
[426949415,1783049449000,-2000.0,0.00032,32]
[426949420,1783049449000,-154.82507086,0.00032,2]
[426949414,1783049449000,-638.17,0.00032,7]
[426949412,1783049449000,-8416.86317064,0.00032,7]
[426949416,1783049449000,-215.0,0.00032,2]
[426949418,1783049449000,-251.0,0.00032,2]
[426949419,1783049449000,-356.0,0.00032,2]
[426949422,1783049449000,-282.0,0.00032,2]
[426949424,1783049449000,-370.15,0.000321,7]
[426949423,1783049449000,-163.449999,0.000321,12]
[426949427,1783049449000,-574.09,0.00032204,2]
[426949425,1783049449000,-256.95,0.000321,7]
[426949428,1783049449000,-151.0,0.00032205,2]
[426949426,1783049449000,-12835.10194018,0.00032112,5]
[426949429,1783049449000,-151.0,0.00032205,2]
[426949402,1783049449000,-288.85,0.00031963,30]
[426949395,1783049449000,-1279.0,0.00031828,2]
[426949367,1783049449000,-151.0,0.00031383,2]
[426949407,1783049449000,-1771.90754046,0.00032,2]
[426949369,1783049449000,-638.17,0.000314,7]
[426949368,1783049449000,-151.0,0.00031384,2]
[426949370,1783049449000,-1049.67121808,0.000314,2]
[426949373,1783049449000,-183.6814736,0.000314,2]
[426949376,1783049449000,-318.0,0.00031475,5]
[426949371,1783049449000,-1049.67121807,0.000314,2]
[426949372,1783049449000,-1049.67121807,0.000314,2]
[426949374,1783049449000,-155.09863669,0.0003147,120]
[426949398,1783049449000,-6090.0,0.00031828,2]
[426949377,1783049449000,-725.0,0.00031475,7]
[426949378,1783049449000,-800.0,0.000315,2]
[426949379,1783049449000,-800.0,0.000315,2]
[426949380,1783049449000,-800.0,0.000315,2]
[426949381,1783049449000,-256.95,0.000315,7]
[426949375,1783049449000,-2287.0,0.00031475,7]
[426949384,1783049449000,-893.08,0.00031519,2]
[426949392,1783049449000,-530.88,0.00031742,2]
[426949396,1783049449000,-1363.0,0.00031828,2]
[426949394,1783049449000,-228.97,0.000318,18]
[426949393,1783049449000,-3439.0,0.00031769,10]
[426949388,1783049449000,-370.15,0.000316,7]
[426949387,1783049449000,-307.57,0.00031567,3]
[426949406,1783049449000,-5000.0,0.00032,2]
[426949385,1783049449000,-256.35845152,0.0003155,2]
[426949389,1783049449000,-2120.41,0.000316,7]
[426949386,1783049449000,-243.8114247,0.00031555,2]
[426949391,1783049449000,-288.86,0.00031659,30]
[426949383,1783049449000,-173.97616125,0.00031507,15]
[426949382,1783049449000,-276.0,0.00031507,120]
[426949390,1783049449000,-151.0,0.00031646,2]
[426949476,1783049450000,-176.129514,0.00032877,7]
[426949474,1783049450000,-176.129514,0.00032877,7]
[426949473,1783049450000,-176.129514,0.00032877,7]
[426949472,1783049450000,-1000.0,0.00032877,10]
[426949465,1783049450000,-1000.0,0.00032877,10]
[426949463,1783049450000,-1000.0,0.00032877,10]
[426949471,1783049450000,-1000.0,0.00032877,10]
[426949464,1783049450000,-1000.0,0.00032877,10]
[426949469,1783049450000,-1000.0,0.00032877,10]
[426949461,1783049450000,-1000.0,0.00032876,2]
[426949467,1783049450000,-1000.0,0.00032877,10]
[426949470,1783049450000,-1000.0,0.00032877,10]
[426949475,1783049450000,-176.129514,0.00032877,7]
[426949490,1783049450000,-176.129514,0.00032877,7]
[426949478,1783049450000,-176.129514,0.00032877,7]
[426949481,1783049450000,-176.129514,0.00032877,7]
[426949482,1783049450000,-176.129514,0.00032877,7]
[426949480,1783049450000,-176.129514,0.00032877,7]
[426949477,1783049450000,-176.129514,0.00032877,7]
[426949479,1783049450000,-176.129514,0.00032877,7]
[426949483,1783049450000,-176.129514,0.00032877,7]
[426949486,1783049450000,-176.129514,0.00032877,7]
[426949485,1783049450000,-176.129514,0.00032877,7]
[426949488,1783049450000,-176.129514,0.00032877,7]
[426949487,1783049450000,-176.129514,0.00032877,7]
[426949489,1783049450000,-176.129514,0.00032877,7]
[426949491,1783049450000,-176.129514,0.00032877,7]
[426949468,1783049450000,-1000.0,0.00032877,10]
[426949484,1783049450000,-176.129514,0.00032877,7]
[426949466,1783049450000,-1000.0,0.00032877,10]
[426949446,1783049450000,-292.31,0.000325,30]
[426949460,1783049450000,-1431.43,0.00032817,60]
[426949493,1783049450000,-1742.90169,0.00032877,5]
[426949430,1783049450000,-573.84,0.00032205,2]
[426949431,1783049450000,-151.0,0.00032205,2]
[426949432,1783049450000,-300.8,0.00032251,7]
[426949433,1783049450000,-288.85,0.00032268,30]
[426949437,1783049450000,-150.0,0.00032402,2]
[426949440,1783049450000,-150.0,0.00032402,2]
[426949441,1783049450000,-150.0,0.00032402,2]
[426949438,1783049450000,-150.0,0.00032402,2]
[426949435,1783049450000,-530.86106544,0.00032302,2]
[426949434,1783049450000,-2120.41,0.000323,7]
[426949443,1783049450000,-800.0,0.000325,5]
[426949439,1783049450000,-150.0,0.00032402,2]
[426949444,1783049450000,-800.0,0.000325,5]
[426949442,1783049450000,-252.515,0.00032402,2]
[426949445,1783049450000,-800.0,0.000325,5]
[426949448,1783049450000,-288.85,0.00032572,30]
[426949455,1783049450000,-151.0,0.00032762,2]
[426949449,1783049450000,-296.08,0.00032589,3]
[426949452,1783049450000,-370.15,0.000326,7]
[426949450,1783049450000,-100720.62387495,0.000326,2]
[426949453,1783049450000,-602.83142763,0.00032681,2]
[426949458,1783049450000,-205.28,0.00032817,60]
[426949454,1783049450000,-256.95,0.000327,7]
[426949447,1783049450000,-184.0,0.00032512,10]
[426949456,1783049450000,-174.44,0.00032802,30]
[426949457,1783049450000,-174.44,0.00032802,30]
[426949451,1783049450000,-638.17,0.000326,7]
[426949459,1783049450000,-259.57,0.00032817,60]
[426949462,1783049450000,-189.93761937,0.00032876,2]
[426949496,1783049450000,-1742.90169,0.00032877,5]
[426949436,1783049450000,-20007.82539604,0.000324,2]
[426949495,1783049450000,-1742.90169,0.00032877,5]
[426949532,1783049450000,-333.61536,0.00032877,7]
[426949527,1783049450000,-333.61536,0.00032877,7]
[426949531,1783049450000,-333.61536,0.00032877,7]
[426949530,1783049450000,-333.61536,0.00032877,7]
[426949533,1783049450000,-251.576065,0.00032877,7]
[426949535,1783049450000,-251.576065,0.00032877,7]
[426949537,1783049450000,-251.576065,0.00032877,7]
[426949546,1783049450000,-251.576065,0.00032877,7]
[426949547,1783049450000,-251.576065,0.00032877,7]
[426949536,1783049450000,-251.576065,0.00032877,7]
[426949539,1783049450000,-251.576065,0.00032877,7]
[426949538,1783049450000,-251.576065,0.00032877,7]
[426949540,1783049450000,-251.576065,0.00032877,7]
[426949542,1783049450000,-251.576065,0.00032877,7]
[426949545,1783049450000,-251.576065,0.00032877,7]
[426949543,1783049450000,-251.576065,0.00032877,7]
[426949541,1783049450000,-251.576065,0.00032877,7]
[426949544,1783049450000,-251.576065,0.00032877,7]
[426949549,1783049450000,-251.576065,0.00032877,7]
[426949548,1783049450000,-251.576065,0.00032877,7]
[426949550,1783049450000,-251.576065,0.00032877,7]
[426949552,1783049450000,-251.576057,0.00032877,7]
[426949558,1783049450000,-424.0,0.00032988,5]
[426949553,1783049450000,-162.259372,0.00032877,120]
[426949557,1783049450000,-3050.0,0.00032988,7]
[426949556,1783049450000,-200.509245,0.000329,7]
[426949492,1783049450000,-176.129504,0.00032877,7]
[426949555,1783049450000,-288.85,0.00032877,30]
[426949551,1783049450000,-251.576065,0.00032877,7]
[426949529,1783049450000,-333.61536,0.00032877,7]
[426949528,1783049450000,-333.61536,0.00032877,7]
[426949554,1783049450000,-902.28,0.00032877,50]
[426949525,1783049450000,-333.61536,0.00032877,7]
[426949526,1783049450000,-333.61536,0.00032877,7]
[426949494,1783049450000,-1742.90169,0.00032877,5]
[426949497,1783049450000,-1742.90169,0.00032877,5]
[426949500,1783049450000,-1742.90169,0.00032877,5]
[426949501,1783049450000,-1742.90169,0.00032877,5]
[426949504,1783049450000,-1742.90169,0.00032877,5]
[426949503,1783049450000,-1742.90169,0.00032877,5]
[426949499,1783049450000,-1742.90169,0.00032877,5]
[426949502,1783049450000,-1742.90169,0.00032877,5]
[426949506,1783049450000,-1742.90169,0.00032877,5]
[426949507,1783049450000,-1742.90169,0.00032877,5]
[426949505,1783049450000,-1742.90169,0.00032877,5]
[426949509,1783049450000,-1742.90169,0.00032877,5]
[426949508,1783049450000,-1742.90169,0.00032877,5]
[426949511,1783049450000,-1742.90169,0.00032877,5]
[426949498,1783049450000,-1742.90169,0.00032877,5]
[426949512,1783049450000,-1742.901698,0.00032877,5]
[426949510,1783049450000,-1742.90169,0.00032877,5]
[426949524,1783049450000,-333.61536,0.00032877,7]
[426949522,1783049450000,-333.61536,0.00032877,7]
[426949520,1783049450000,-333.61536,0.00032877,7]
[426949521,1783049450000,-333.61536,0.00032877,7]
[426949515,1783049450000,-333.61536,0.00032877,7]
[426949534,1783049450000,-251.576065,0.00032877,7]
[426949516,1783049450000,-333.61536,0.00032877,7]
[426949517,1783049450000,-333.61536,0.00032877,7]
[426949519,1783049450000,-333.61536,0.00032877,7]
[426949523,1783049450000,-333.61536,0.00032877,7]
[426949518,1783049450000,-333.61536,0.00032877,7]
[426949514,1783049450000,-333.61536,0.00032877,7]
[426949513,1783049450000,-333.61536,0.00032877,7]
[426949598,1783049451000,-161.0,0.00033417,11]
[426949601,1783049451000,-169.81,0.00033424,120]
[426949599,1783049451000,-618.0,0.0003342,120]
[426949600,1783049451000,-1166.42,0.00033422,4]
[426949592,1783049451000,-5000.0,0.000333,7]
[426949591,1783049451000,-256.95,0.000333,7]
[426949597,1783049451000,-618.0,0.0003341,120]
[426949594,1783049451000,-537.17894575,0.00033377,60]
[426949593,1783049451000,-3000.0,0.0003333,14]
[426949596,1783049451000,-618.0,0.000334,120]
[426949595,1783049451000,-517.91414946,0.00033377,60]
[426949602,1783049451000,-602.83142763,0.00033424,2]
[426949590,1783049451000,-3029.35652061,0.000333,14]
[426949607,1783049451000,-300.0,0.00033439,2]
[426949604,1783049451000,-476.51882812,0.00033439,2]
[426949610,1783049451000,-536.83065571,0.00033439,2]
[426949612,1783049451000,-303.40388377,0.00033439,2]
[426949609,1783049451000,-607.91868214,0.00033439,2]
[426949606,1783049451000,-495.35167751,0.00033439,2]
[426949605,1783049451000,-300.0,0.00033439,2]
[426949614,1783049451000,-300.0,0.00033439,2]
[426949613,1783049451000,-302.19910179,0.00033439,2]
[426949608,1783049451000,-300.0,0.00033439,2]
[426949611,1783049451000,-730.2023839,0.00033439,2]
[426949615,1783049451000,-300.0,0.00033439,2]
[426949589,1783049451000,-16553.68186875,0.0003325,2]
[426949603,1783049451000,-250.0,0.00033424,7]
[426949588,1783049451000,-638.17,0.000332,30]
[426949572,1783049451000,-263.3640503,0.00033,2]
[426949581,1783049451000,-152.0,0.00033101,8]
[426949561,1783049451000,-2000.0,0.00033,120]
[426949560,1783049451000,-800.0,0.00033,5]
[426949559,1783049451000,-967.0,0.00032988,7]
[426949562,1783049451000,-800.0,0.00033,5]
[426949563,1783049451000,-92324.43327955,0.00033,120]
[426949566,1783049451000,-800.0,0.00033,5]
[426949567,1783049451000,-2000.0,0.00033,33]
[426949565,1783049451000,-5173.14778081,0.00033,120]
[426949569,1783049451000,-2120.41,0.00033,7]
[426949571,1783049451000,-355.81797299,0.00033,2]
[426949570,1783049451000,-229.83428532,0.00033,2]
[426949568,1783049451000,-454.54356,0.00033,14]
[426949586,1783049451000,-256.35845152,0.00033167,2]
[426949564,1783049451000,-4190.0,0.00033,6]
[426949575,1783049451000,-295.58595066,0.00033,2]
[426949574,1783049451000,-308.4611006,0.00033,2]
[426949577,1783049451000,-5158.0,0.0003304,10]
[426949579,1783049451000,-10223.17350645,0.000331,2]
[426949587,1783049451000,-288.85,0.00033181,30]
[426949576,1783049451000,-1503.013316,0.00033,11]
[426949578,1783049451000,-200.0,0.000331,12]
[426949585,1783049451000,-155.54209052,0.00033155,2]
[426949584,1783049451000,-797.14306041,0.00033123,30]
[426949583,1783049451000,-152.0,0.00033101,5]
[426949582,1783049451000,-169.74377518,0.00033101,5]
[426949580,1783049451000,-370.15,0.000331,30]
[426949573,1783049451000,-361.98530138,0.00033,2]
[426949616,1783049451000,-300.0,0.00033439,2]
[426949618,1783049451000,-345.80256672,0.00033439,2]
[426949627,1783049451000,-597.3150425,0.00033439,2]
[426949651,1783049451000,-303.40388377,0.00033439,2]
[426949645,1783049451000,-495.35167751,0.00033439,2]
[426949648,1783049451000,-607.91868214,0.00033439,2]
[426949654,1783049451000,-300.0,0.00033439,2]
[426949653,1783049451000,-300.0,0.00033439,2]
[426949656,1783049451000,-300.0,0.00033439,2]
[426949657,1783049451000,-345.80256672,0.00033439,2]
[426949664,1783049451000,-300.0,0.00033439,2]
[426949662,1783049451000,-1807.51296116,0.00033439,2]
[426949660,1783049451000,-300.0,0.00033439,2]
[426949666,1783049451000,-311.25771399,0.00033439,2]
[426949667,1783049451000,-569.07827579,0.00033439,2]
[426949650,1783049451000,-730.2023839,0.00033439,2]
[426949663,1783049451000,-564.57560998,0.00033439,2]
[426949665,1783049451000,-597.3150425,0.00033439,2]
[426949661,1783049451000,-954.40977015,0.00033439,2]
[426949668,1783049451000,-514.02377053,0.00033439,2]
[426949669,1783049451000,-300.0,0.00033439,2]
[426949672,1783049451000,-300.0,0.00033439,2]
[426949673,1783049451000,-300.0,0.00033439,2]
[426949670,1783049451000,-584.85636615,0.00033439,2]
[426949674,1783049451000,-494.63254178,0.00033439,2]
[426949671,1783049451000,-454.31833835,0.00033439,2]
[426949675,1783049451000,-300.0,0.00033439,2]
[426949676,1783049451000,-446.20103305,0.00033439,2]
[426949619,1783049451000,-529.6723478,0.00033439,2]
[426949659,1783049451000,-324.62636289,0.00033439,2]
[426949649,1783049451000,-536.83065571,0.00033439,2]
[426949658,1783049451000,-529.6723478,0.00033439,2]
[426949652,1783049451000,-302.19910179,0.00033439,2]
[426949617,1783049451000,-300.0,0.00033439,2]
[426949655,1783049451000,-300.0,0.00033439,2]
[426949620,1783049451000,-300.0,0.00033439,2]
[426949621,1783049451000,-300.0,0.00033439,2]
[426949622,1783049451000,-954.40977015,0.00033439,2]
[426949624,1783049451000,-315.99223463,0.00033439,2]
[426949623,1783049451000,-1807.51296116,0.00033439,2]
[426949626,1783049451000,-300.0,0.00033439,2]
[426949625,1783049451000,-564.57560998,0.00033439,2]
[426949629,1783049451000,-569.07827579,0.00033439,2]
[426949630,1783049451000,-514.02377053,0.00033439,2]
[426949631,1783049451000,-300.0,0.00033439,2]
[426949632,1783049451000,-584.85636615,0.00033439,2]
[426949636,1783049451000,-300.0,0.00033439,2]
[426949628,1783049451000,-311.25771399,0.00033439,2]
[426949646,1783049451000,-300.0,0.00033439,2]
[426949647,1783049451000,-300.0,0.00033439,2]
[426949634,1783049451000,-300.0,0.00033439,2]
[426949644,1783049451000,-300.0,0.00033439,2]
[426949643,1783049451000,-300.81623316,0.00033439,2]
[426949641,1783049451000,-1101.26754386,0.00033439,2]
[426949640,1783049451000,-300.0,0.00033439,2]
[426949642,1783049451000,-300.0,0.00033439,2]
[426949639,1783049451000,-399.03418735,0.00033439,2]
[426949635,1783049451000,-300.0,0.00033439,2]
[426949633,1783049451000,-454.31833835,0.00033439,2]
[426949637,1783049451000,-300.0,0.00033439,2]
[426949638,1783049451000,-446.20103305,0.00033439,2]
[426949716,1783049452000,-300.0,0.00033439,2]
[426949721,1783049452000,-1101.26754386,0.00033439,2]
[426949727,1783049452000,-300.0,0.00033439,2]
[426949717,1783049452000,-300.0,0.00033439,2]
[426949715,1783049452000,-446.20103305,0.00033439,2]
[426949713,1783049452000,-300.0,0.00033439,2]
[426949710,1783049452000,-300.0,0.00033439,2]
[426949711,1783049452000,-454.31833835,0.00033439,2]
[426949707,1783049452000,-514.02377053,0.00033439,2]
[426949714,1783049452000,-300.0,0.00033439,2]
[426949722,1783049452000,-300.0,0.00033439,2]
[426949708,1783049452000,-300.0,0.00033439,2]
[426949720,1783049452000,-300.0,0.00033439,2]
[426949732,1783049452000,-300.0,0.00033439,2]
[426949723,1783049452000,-300.0,0.00033439,2]
[426949719,1783049452000,-300.0,0.00033439,2]
[426949726,1783049452000,-300.0,0.00033439,2]
[426949725,1783049452000,-300.0,0.00033439,2]
[426949718,1783049452000,-300.0,0.00033439,2]
[426949728,1783049452000,-304.4786596,0.00033439,2]
[426949731,1783049452000,-300.0,0.00033439,2]
[426949729,1783049452000,-300.0,0.00033439,2]
[426949734,1783049452000,-300.0,0.00033439,2]
[426949735,1783049452000,-607.91868214,0.00033439,2]
[426949730,1783049452000,-495.35167751,0.00033439,2]
[426949736,1783049452000,-300.0,0.00033439,2]
[426949712,1783049452000,-300.0,0.00033439,2]
[426949724,1783049452000,-300.0,0.00033439,2]
[426949705,1783049452000,-300.0,0.00033439,2]
[426949678,1783049452000,-1101.26754386,0.00033439,2]
[426949706,1783049452000,-300.0,0.00033439,2]
[426949737,1783049452000,-536.83065571,0.00033439,2]
[426949677,1783049452000,-300.0,0.00033439,2]
[426949679,1783049452000,-300.0,0.00033439,2]
[426949680,1783049452000,-300.0,0.00033439,2]
[426949681,1783049452000,-300.0,0.00033439,2]
[426949683,1783049452000,-343.77201349,0.00033439,2]
[426949684,1783049452000,-607.91868214,0.00033439,2]
[426949689,1783049452000,-300.0,0.00033439,2]
[426949688,1783049452000,-302.19910179,0.00033439,2]
[426949685,1783049452000,-536.83065571,0.00033439,2]
[426949686,1783049452000,-730.2023839,0.00033439,2]
[426949682,1783049452000,-495.35167751,0.00033439,2]